[Event "Gibraltar Challengers B 2019"]
[Site "Caleta"]
[Date "2019.01.26"]
[Round "1"]
[White "Kukic, Boris"]
[Black "Elishev, Ivan"]
[Result "0-1"]
[ECO "B01"]
[WhiteElo "2035"]
[BlackElo "2224"]
[Annotator "NA"]
[PlyCount "126"]
[EventDate "2019.01.18"]
[EventType "swiss"]
[EventCountry "GGB"]
[SourceTitle "playchess.com"]
[Source "ChessBase"]
[SourceQuality "1"]
[TimeControl "6600+10"]

{[%evp 9,126,57,41,29,32767,32767,32767,41,32767,41,92,-22,-8,-14,32767,32767,32767,0,32767,32767,16,32767,32767,-37,-48,-82,32767,-58,-58,32767,-60,-47,32767,32767,32767,-49,32767,-78,32767,0,0,32767,-84,-77,-85,32767,32767,32767,32767,32767,32767,32767,32767,32767,-268,-301,-310,-269,-351,-322,-279,32767,-891,32767,-62,32767,-810,-618,-889,-642,-636,-781,-1227,32767,-812,32767,32767,32767,-3561,-835,-6220,-1373,-1870,-1257,-4579,-739,-6311,-913,32767,-4610,-29965,32767,32767,-8647,32767,32767,32767,32767,-29966,-29983,-29984,32767,32767,32767,32767,-29982,-29987,-29989,-29986,32767,-29987,32767,-29988,-29988,32767,-29990,-29988,-29988,-29989]} 1. e4 {[%emt 0:00:00]} d5 {[%emt 0:00:02]} 2. exd5 {[%emt 0:00:27]} Nf6 {[%emt 0:00:03]} 3. Nf3 {[%emt 0:00:13]} Bg4 {[%emt 0:00:07]} 4. Be2 {[%emt 0:00:06]} Qxd5 {[%emt 0:00:10]} 5. d4 {[%emt 0:00:35]} Nc6 {[%emt 0:00:13]} ({Don't play} 5... Bxf3 6. Bxf3 Qa5+ 7. c3 $16) 6. c3 {[%emt 0:00:06]} O-O-O {[%emt 0:01:33]} 7. O-O {[%emt 0:00:29]} e5 {[%emt 0:04:08] B01: Scandinavian Defence} 8. c4 {[%emt 0:00:15]} Qd7 {[%emt 0:00:35]} 9. d5 $1 {[%emt 0:00:21]} e4 $146 {[%emt 0:00:16]} ({Predecessor:} 9... Bxf3 $14 10. Bxf3 Nd4 11. Be3 Nxf3+ 12. Qxf3 Qg4 13. Nd2 Be7 14. Rac1 Kb8 15. h3 Qxf3 16. Nxf3 {1-0 (53) Despontin,L (2309)-Andersen,J (2303) ICCF email 2015}) 10. Ne1 {[%emt 0:02:07]} (10. dxc6 $16 Qxd1 11. Rxd1) 10... Ne5 {[%emt 0:06:21]} 11. Bxg4 {[%emt 0:00:24]} Qxg4 {[%emt 0:13:36]} 12. Qxg4+ {[%emt 0:02:48]} Nfxg4 {[%emt 0:00:15]} 13. h3 {[%emt 0:00:22]} Nf6 {[%emt 0:01:36]} 14. b3 {[%emt 0:00:08]} Bc5 {[%emt 0:08:14]} 15. Bb2 {[%emt 0:01:01]} Rhe8 {[%emt 0:00:08]} 16. Nc3 {[%emt 0:01:17]} c6 {[%emt 0:09:47]} 17. Na4 {[%emt 0:00:22]} Bf8 {[%emt 0:03:14]} 18. Bxe5 {[%emt 0:00:14]} Rxe5 {[%emt 0:00:05]} 19. dxc6 {[%emt 0:00:14]} bxc6 {[%emt 0:00:24]} 20. Nc2 {[%emt 0:00:05]} Rd2 {[%emt 0:04:56]} 21. Ne3 {[%emt 0:00:07]} Re8 {[%emt 0:00:10]} 22. Rfd1 {[%emt 0:00:07]} Red8 {[%emt 0:00:13]} 23. Kf1 {[%emt 0:00:12]} Ba3 {[%emt 0:09:59]} 24. Rxd2 {[%emt 0:01:42]} Rxd2 {[%emt 0:00:03]} 25. Ke1 {[%emt 0:00:30]} Bb4 {[%emt 0:00:27]} 26. Kf1 {[%emt 0:00:05]} Nd7 {[%emt 0:03:07]} 27. a3 {[%emt 0:00:13]} Bc5 {[%emt 0:00:45]} 28. Nxc5 {[%emt 0:00:23]} Nxc5 {[%emt 0:00:01]} 29. b4 {[%emt 0:00:26]} Nd3 {[%emt 0:00:25]} 30. Nd1 {[%emt 0:02:14]} f5 {[%emt 0:04:17]} 31. g3 {[%emt 0:00:19]} g5 {[%emt 0:00:35]} 32. a4 {[%emt 0:00:53]} f4 {[%emt 0:11:15]} ({Don't take} 32... Nxb4 33. g4 $19) 33. gxf4 {[%emt 0:00:31]} gxf4 {[%emt 0:00:03]} 34. b5 {[%emt 0:00:15]} f3 {[%emt 0:00:39]} 35. a5 {[%emt 0:00:44]} Re2 {[%emt 0:00:45]} 36. Kg1 {[%emt 0:01:46]} Re1+ {[%emt 0:00:32]} 37. Kh2 {[%emt 0:00:06] [#]} Nxf2 $1 {[%emt 0:05:10]} 38. Nxf2 {[%emt 0:00:20]} Rxa1 {[%emt 0:00:03]} 39. Nxe4 {[%emt 0:00:08]} cxb5 {[%emt 0:00:57]} 40. cxb5 {[%emt 0:00:04]} Rxa5 {[%emt 0:00:20]} 41. Kg3 {[%emt 0:00:03]} Ra3 {[%emt 0:01:24]} 42. h4 {[%emt 0:00:11]} h6 {[%emt 0:00:22]} 43. h5 {[%emt 0:00:12]} Kd7 {[%emt 0:01:14]} 44. Nf6+ {[%emt 0:00:13]} Ke6 {[%emt 0:00:05]} 45. Ng4 {[%emt 0:00:05]} Kf5 {[%emt 0:00:26]} 46. Nxh6+ {[%emt 0:00:15]} Kg5 {[%emt 0:00:05]} 47. Nf7+ {[%emt 0:00:16]} Kxh5 {[%emt 0:00:04]} 48. Ne5 {[%emt 0:00:28]} Kg5 {[%emt 0:00:34]} 49. Nxf3+ {[%emt 0:00:07]} Kf5 {[%emt 0:00:05]} 50. Kf2 {[%emt 0:00:12]} Ke4 {[%emt 0:00:10]} 51. Ng5+ {[%emt 0:00:14]} Kd5 {[%emt 0:00:05]} 52. Ke2 {[%emt 0:00:09]} Kc4 {[%emt 0:00:15]} 53. Kd2 {[%emt 0:00:08]} Ra2+ {[%emt 0:00:37]} 54. Kc1 {[%emt 0:00:09]} Kxb5 {[%emt 0:00:12]} 55. Kb1 {[%emt 0:00:11]} Rg2 {[%emt 0:00:14]} 56. Nf3 {[%emt 0:00:22]} Kb4 {[%emt 0:00:15]} 57. Nd4 {[%emt 0:00:15]} a5 {[%emt 0:00:21]} 58. Nc6+ {[%emt 0:00:07]} Kb5 {[%emt 0:00:09]} 59. Nd4+ {[%emt 0:00:06]} Kc4 {[%emt 0:00:10]} 60. Nc2 {[%emt 0:00:22]} Kc3 {[%emt 0:00:06]} 61. Ne3 {[%emt 0:00:09]} Re2 {[%emt 0:00:27]} 62. Nf5 {[%emt 0:00:39]} Rf2 {[%emt 0:01:11]} 63. Ne3 {[%emt 0:00:09]} Kb3 {[%emt 0:00:12]} 0-1

[Event "Gibraltar Challengers B 2019"]
[Site "Caleta"]
[Date "2019.01.26"]
[Round "1"]
[White "Fegan, Chris"]
[Black "Pinho, Paulo"]
[Result "1/2-1/2"]
[ECO "E72"]
[WhiteElo "2024"]
[BlackElo "2205"]
[Annotator "NA"]
[PlyCount "75"]
[EventDate "2019.01.18"]
[EventType "swiss"]
[EventCountry "GGB"]
[SourceTitle "playchess.com"]
[Source "ChessBase"]
[SourceQuality "1"]
[TimeControl "6600+10"]

1. d4 {[%emt 0:00:00]} Nf6 {[%emt 0:00:00]} 2. c4 {[%emt 0:00:06]} g6 {[%emt 0:00:07]} 3. g3 {[%emt 0:00:28]} Bg7 {[%emt 0:00:59]} 4. Bg2 {[%emt 0:00:12]} O-O {[%emt 0:07:37]} 5. Nc3 {[%emt 0:04:35]} d6 {[%emt 0:00:19]} 6. e4 {[%emt 0:05:08]} Nc6 {[%emt 0:01:57]} 7. Nge2 {[%emt 0:05:34]} e5 {[%emt 0:18:28]} 8. d5 {[%emt 0:04:21]} Nd4 {[%emt 0:00:08]} 9. O-O {[%emt 0:02:39]} c5 {[%emt 0:25:18]} 10. dxc6 {[%emt 0:04:02]} bxc6 {[%emt 0:05:02]} 11. Nxd4 {[%emt 0:06:04]} exd4 {[%emt 0:00:06]} 12. Qxd4 {[%emt 0:00:58] E72: King's Indian: 4 e4 d6 5 g3} Ng4 {[%emt 0:04:20] LiveBook: 6 Games} 13. Qd2 {[%emt 0:05:46]} (13. Qd1 Ne5 14. b3 Nxc4 15. bxc4 Bxc3 16. Bh6 Re8 17. Rc1 Bh8 18. e5 Rxe5 19. Bxc6 Bh3 {0-1 (43) Nielsen,P (2639)-Fressinet,L (2668) Porto Vecchio 2017}) 13... Ne5 {[%emt 0:03:34]} 14. b3 {[%emt 0:05:24]} Qa5 $146 {[%emt 0:13:39]} ({Predecessor:} 14... Qf6 15. Bb2 Nf3+ 16. Bxf3 Qxf3 17. Qf4 Qxf4 18. gxf4 f5 19. e5 dxe5 20. fxe5 Bxe5 21. Rfe1 {½-½ (21) Borges Matos,J (2530)-Moreno,A (2385) Ciego de Avila 1996}) 15. Bb2 {[%emt 0:08:31]} Be6 {[%emt 0:00:54]} 16. f4 {[%emt 0:13:48]} Ng4 {[%emt 0:00:40]} 17. h3 {[%emt 0:02:34]} Qc5+ {[%emt 0:00:12]} 18. Kh1 {[%emt 0:00:44]} Ne3 {[%emt 0:02:20]} 19. Rfe1 {[%emt 0:03:28]} (19. Rf3 $18 {is more deadly.} Nxg2 20. Kxg2 (20. Qxg2 Qa5 $16)) 19... Nxg2 {[%emt 0:00:37]} 20. Kxg2 {[%emt 0:01:15]} Qa5 {[%emt 0:00:46]} 21. Red1 {[%emt 0:02:26]} Qh5 {[%emt 0:01:16] [#]} 22. g4 {[%emt 0:03:15]} ({Better is} 22. Rh1 $1 $16) 22... Qh4 {[%emt 0:00:07]} 23. Qf2 {[%emt 0:02:02]} ({Not} 23. Qxd6 Rad8 $15) 23... Qe7 {[%emt 0:00:05]} 24. f5 {[%emt 0:01:10]} Bc8 {[%emt 0:00:18]} 25. Rf1 {[%emt 0:03:09]} Bxc3 {[%emt 0:03:08]} 26. Bxc3 {[%emt 0:01:18]} Qxe4+ {[%emt 0:00:05]} 27. Kh2 {[%emt 0:01:03]} Qd3 {[%emt 0:02:29]} 28. Bb2 {[%emt 0:05:24]} Re8 {[%emt 0:00:05]} 29. fxg6 {[%emt 0:05:38]} Qxg6 {[%emt 0:00:11]} 30. Qd4 {[%emt 0:01:06]} Re2+ {[%emt 0:01:22]} 31. Kg1 {[%emt 0:00:23]} Re5 {[%emt 0:00:06]} 32. Rae1 {[%emt 0:00:48]} f6 {[%emt 0:02:24]} 33. Qxd6 {[%emt 0:01:06]} Bxg4 {[%emt 0:00:17]} 34. Bxe5 {[%emt 0:01:24]} Bxh3+ {[%emt 0:00:56]} 35. Bg3 {[%emt 0:00:08]} Bxf1 {[%emt 0:00:27]} 36. Rxf1 {[%emt 0:00:21]} Re8 $18 {[%emt 0:00:23]} 37. Qxf6 {[%emt 0:00:53]} Qxg3+ {[%emt 0:00:13]} 38. Kh1 {[%emt 0:00:10]} 1/2-1/2

[Event "Gibraltar Challengers B 2019"]
[Site "Caleta"]
[Date "2019.01.26"]
[Round "1"]
[White "Herzwurm, Robert"]
[Black "Lucas Vega, Ivan"]
[Result "0-1"]
[ECO "B23"]
[WhiteElo "2021"]
[BlackElo "2203"]
[Annotator "NA"]
[PlyCount "90"]
[EventDate "2019.01.18"]
[EventType "swiss"]
[EventCountry "GGB"]
[SourceTitle "playchess.com"]
[Source "ChessBase"]
[SourceQuality "1"]
[TimeControl "6600+10"]

1. e4 {[%emt 0:00:00]} c5 {[%emt 0:00:00]} 2. Nc3 {[%emt 0:00:00]} a6 {[%emt 0:00:00]} 3. f4 {[%emt 0:00:08]} Nc6 {[%emt 0:00:15]} 4. g3 {[%emt 0:01:24] B23: Closed Sicilian: Lines without g3} (4. Nf3 e6 5. d3 d5 6. g3 dxe4 7. dxe4 Qxd1+ 8. Nxd1 Nf6 9. e5 Nd5 10. c4 Nde7 11. Ne3 Nf5 12. Bd3 Be7 13. Kf2 Nxe3 14. Bxe3 Bd7 {0-1 (29) Gazik,V (2501)-Manik,M (2400) Banska Stiavnica 2018}) 4... e6 {[%emt 0:01:28]} 5. Bg2 {[%emt 0:00:22]} g6 {[%emt 0:04:02]} 6. Nf3 {[%emt 0:00:50]} Bg7 {[%emt 0:01:21]} 7. Qe2 {[%emt 0:07:10]} Nge7 {[%emt 0:04:35]} 8. d3 {[%emt 0:03:33]} O-O {[%emt 0:01:38]} 9. O-O {[%emt 0:06:24]} Nd4 {[%emt 0:10:14]} 10. Nxd4 {[%emt 0:02:06]} cxd4 {[%emt 0:00:04]} 11. Nd1 {[%emt 0:00:38]} d6 {[%emt 0:04:26]} 12. g4 $146 {[%emt 0:01:45]} f6 {[%emt 0:04:54]} 13. h4 {[%emt 0:01:16]} Bd7 {[%emt 0:08:39]} 14. Qf2 {[%emt 0:13:16]} e5 {[%emt 0:16:17]} 15. f5 {[%emt 0:01:08]} Bc6 {[%emt 0:01:03]} 16. Qg3 {[%emt 0:08:35]} Kh8 {[%emt 0:04:13]} 17. Bd2 {[%emt 0:09:16]} Rg8 {[%emt 0:01:36]} 18. fxg6 {[%emt 0:03:42]} hxg6 {[%emt 0:00:09]} 19. Nf2 {[%emt 0:17:13]} Rf8 {[%emt 0:01:27]} 20. Bh3 {[%emt 0:05:47]} Bd7 {[%emt 0:07:04]} 21. g5 {[%emt 0:08:04]} f5 {[%emt 0:05:44]} 22. h5 {[%emt 0:03:45]} gxh5 {[%emt 0:00:23]} 23. Qh4 {[%emt 0:04:30]} (23. exf5 $11 {remains equal.} Nxf5 24. Qh2) 23... Qe8 {[%emt 0:05:33]} 24. Nh1 {[%emt 0:03:11]} f4 {[%emt 0:01:57]} 25. Bxd7 {[%emt 0:02:50]} Qxd7 {[%emt 0:00:02]} 26. Qxh5+ {[%emt 0:00:36]} Kg8 {[%emt 0:00:00]} 27. Rf2 {[%emt 0:04:10]} Qe6 {[%emt 0:00:35]} 28. Raf1 {[%emt 0:00:47]} Qg6 {[%emt 0:07:55]} 29. Qg4 {[%emt 0:00:01]} Nc6 {[%emt 0:03:10]} 30. Rh2 {[%emt 0:00:21]} Rf7 {[%emt 0:01:13]} 31. Rf3 {[%emt 0:00:05]} Nd8 {[%emt 0:00:46]} 32. Rfh3 {[%emt 0:00:20]} Ne6 {[%emt 0:00:13]} 33. Rh5 {[%emt 0:00:19]} Re8 $14 {[%emt 0:01:50]} 34. Kf1 {[%emt 0:00:08]} Kf8 {[%emt 0:00:28]} 35. Bb4 {[%emt 0:00:29]} Nc5 {[%emt 0:04:33]} 36. Nf2 {[%emt 0:00:50]} Rd8 {[%emt 0:02:45]} 37. Rh6 {[%emt 0:00:18]} Bxh6 {[%emt 0:00:02]} 38. Rxh6 {[%emt 0:00:05]} Qg7 {[%emt 0:00:09]} 39. Qh4 {[%emt 0:00:11]} Ke8 {[%emt 0:01:10]} 40. g6 {[%emt 0:00:31]} Rf6 {[%emt 0:00:10]} 41. Rh8+ {[%emt 0:00:02]} Rf8 {[%emt 0:00:10]} 42. Rh7 {[%emt 0:00:04]} Qf6 {[%emt 0:00:08]} 43. Qh5 {[%emt 0:00:14]} Rg8 {[%emt 0:00:56]} 44. Bxc5 {[%emt 0:00:32]} dxc5 {[%emt 0:01:02]} 45. Rf7 {[%emt 0:00:01]} Qxg6 {[%emt 0:00:37]} 0-1

[Event "Gibraltar Challengers B 2019"]
[Site "Caleta"]
[Date "2019.01.26"]
[Round "1"]
[White "Hassomal Daswani, Birjkumar"]
[Black "Pavlov, Egor"]
[Result "0-1"]
[ECO "B18"]
[WhiteElo "2008"]
[BlackElo "2187"]
[Annotator "NA"]
[PlyCount "94"]
[EventDate "2019.01.18"]
[EventType "swiss"]
[EventCountry "GGB"]
[SourceTitle "playchess.com"]
[Source "ChessBase"]
[SourceQuality "1"]
[TimeControl "6600+10"]

1. e4 {[%emt 0:00:00]} c6 {[%emt 0:00:00]} 2. d4 {[%emt 0:00:14]} d5 {[%emt 0:00:02]} 3. Nd2 {[%emt 0:00:44]} dxe4 {[%emt 0:00:08]} 4. Nxe4 {[%emt 0:00:24]} Bf5 {[%emt 0:00:07]} 5. Ng3 {[%emt 0:00:21]} Bg6 {[%emt 0:00:05]} 6. Nf3 {[%emt 0:01:50]} Nd7 {[%emt 0:02:48]} 7. Bd3 {[%emt 0:01:02]} Ngf6 {[%emt 0:00:41]} 8. Bg5 {[%emt 0:00:50] B18: Classical Caro-Kann: 4...Bf5 sidelines} (8. Bxg6 hxg6 9. O-O e6 10. c4 Be7 11. Bf4 O-O 12. a4 a5 13. Re1 Re8 14. Re3 b5 15. axb5 cxb5 16. d5 exd5 17. cxd5 {½-½ (75) Sutovsky,E (2622)-Motylev,A (2660) Poikovsky 2016}) 8... Qc7 $146 {[%emt 0:02:47]} ({Predecessor:} 8... e6 9. Bxg6 hxg6 10. O-O Qc7 11. Re1 Bd6 12. c4 O-O 13. Ne4 Nxe4 14. Rxe4 c5 15. Qd2 f6 16. Be3 Rfd8 17. Rxe6 cxd4 18. Bxd4 Nf8 19. Re4 Qxc4 20. a3 Rac8 21. Qe1 Qb5 {½-½ (21) Lovakovic,F (2396)-Tazelaar,H (2382) ICCF email 2015}) 9. Bxg6 {[%emt 0:00:44]} hxg6 {[%emt 0:00:05]} 10. Qe2 {[%emt 0:01:48]} e6 {[%emt 0:02:21]} 11. O-O-O {[%emt 0:04:58]} O-O-O {[%emt 0:07:15]} 12. Ne5 {[%emt 0:02:35]} Nxe5 {[%emt 0:03:39]} 13. dxe5 {[%emt 0:00:30]} Rxd1+ {[%emt 0:00:06]} 14. Rxd1 {[%emt 0:00:32]} Nd7 {[%emt 0:00:21]} 15. Nf1 {[%emt 0:09:36]} Qxe5 {[%emt 0:03:34]} 16. Qxe5 {[%emt 0:01:04]} Nxe5 {[%emt 0:00:04]} 17. Rd8+ {[%emt 0:02:13]} Kc7 {[%emt 0:00:05]} 18. Ra8 {[%emt 0:00:41]} Nd7 {[%emt 0:25:59]} 19. Be7 $2 {[%emt 0:02:43]} (19. Bd8+ $16 Kd6 20. Rxa7) 19... Nb8 {[%emt 0:01:15]} 20. Bd8+ {[%emt 0:02:13]} Kc8 {[%emt 0:01:03]} 21. Bg5 {[%emt 0:00:34]} f6 {[%emt 0:03:31]} 22. Be3 {[%emt 0:01:49]} a6 {[%emt 0:00:32]} 23. a4 {[%emt 0:01:46]} Bd6 {[%emt 0:07:12]} 24. h3 {[%emt 0:00:57]} Rh4 {[%emt 0:07:59]} 25. b3 {[%emt 0:01:22]} Bf4 {[%emt 0:03:43]} 26. Kd2 {[%emt 0:01:22]} g5 {[%emt 0:00:53]} (26... Bc7 $17 27. Kc1 c5) 27. Kd3 {[%emt 0:00:26]} Bxe3 {[%emt 0:01:49]} 28. Nxe3 {[%emt 0:00:11]} Kc7 {[%emt 0:03:54]} 29. a5 {[%emt 0:00:23]} Rh8 {[%emt 0:02:13]} 30. Nc4 {[%emt 0:00:37]} Rd8+ {[%emt 0:00:41]} 31. Ke2 {[%emt 0:00:12]} c5 {[%emt 0:01:51]} 32. Nb6 {[%emt 0:00:56]} g6 {[%emt 0:00:54]} 33. Na4 {[%emt 0:04:44]} Kc6 {[%emt 0:02:41]} 34. c4 {[%emt 0:02:33]} Rf8 {[%emt 0:01:13]} 35. Nc3 {[%emt 0:02:06]} f5 {[%emt 0:01:24]} 36. Na4 {[%emt 0:00:40]} Nd7 {[%emt 0:00:49]} 37. Rxf8 {[%emt 0:00:39]} Nxf8 {[%emt 0:00:04]} 38. g4 {[%emt 0:01:45]} Nd7 {[%emt 0:02:17]} 39. Ke3 {[%emt 0:00:19]} Kd6 $15 {[%emt 0:04:06]} (39... e5 $19 40. Nc3 e4) 40. Nb2 {[%emt 0:00:44]} fxg4 {[%emt 0:02:05]} 41. hxg4 {[%emt 0:00:09]} Ne5 {[%emt 0:00:08]} 42. f3 {[%emt 0:00:27]} Nc6 {[%emt 0:00:07]} 43. Nd3 {[%emt 0:03:30]} Nxa5 {[%emt 0:00:12]} 44. Nc1 {[%emt 0:00:30]} e5 {[%emt 0:04:50]} 45. Ke4 {[%emt 0:00:10]} b5 {[%emt 0:00:19]} 46. cxb5 {[%emt 0:00:27]} axb5 {[%emt 0:00:01]} 47. Kd3 {[%emt 0:01:11]} Nxb3 {[%emt 0:01:02] Kd4 [%emt 00:00:35]} 0-1

[Event "Gibraltar Challengers B 2019"]
[Site "Caleta"]
[Date "2019.01.26"]
[Round "1"]
[White "Vinal Gutierrez, Pedro"]
[Black "Orndahl, Markus"]
[Result "0-1"]
[ECO "A48"]
[WhiteElo "1997"]
[BlackElo "2173"]
[Annotator "NA"]
[PlyCount "100"]
[EventDate "2019.01.18"]
[EventType "swiss"]
[EventCountry "GGB"]
[SourceTitle "playchess.com"]
[Source "ChessBase"]
[SourceQuality "1"]
[TimeControl "6600+10"]

1. d4 {[%emt 0:00:39]} Nf6 {[%emt 0:03:20]} 2. Bf4 {[%emt 0:00:16]} g6 {[%emt 0:02:31]} 3. e3 {[%emt 0:00:17]} Bg7 {[%emt 0:00:11]} 4. Nf3 {[%emt 0:00:12]} d6 {[%emt 0:00:36]} 5. h3 {[%emt 0:00:13]} O-O {[%emt 0:01:51]} 6. Be2 {[%emt 0:00:14]} b6 {[%emt 0:00:09]} 7. O-O {[%emt 0:00:29]} Bb7 {[%emt 0:00:05]} 8. c4 {[%emt 0:00:55]} Ne4 {[%emt 0:01:44] A48: 1 d4 Nf6 2 Nf3 g6: Torre, London and Colle Systems} (8... Nbd7 9. Bh2 e6 10. Nfd2 Re8 11. Nc3 e5 12. Bf3 Qc8 13. Rc1 Bh6 14. Rc2 a5 15. Nb5 Bf8 16. b3 {0-1 (51) Caruana,F (2804)-Vachier Lagrave,M (2789) Paris 2016}) 9. Nbd2 {[%emt 0:01:02]} Nd7 {[%emt 0:03:20]} 10. Qc2 {[%emt 0:02:39]} Nxd2 {[%emt 0:01:29]} 11. Qxd2 {[%emt 0:00:56]} e5 {[%emt 0:00:47]} 12. Bh2 {[%emt 0:00:51]} e4 $146 {[%emt 0:07:10]} ({Predecessor:} 12... Qe7 13. Rac1 a5 14. Rfd1 Rad8 15. Qc2 f5 16. a3 {1-0 (31) Pecorelli Garcia,H (2435)-Plachetka,J (2440) Trencianske Teplice 1985}) 13. Ne1 {[%emt 0:00:17] LiveBook: 3 Games} Qe7 {[%emt 0:02:07]} 14. b4 {[%emt 0:01:27]} a5 {[%emt 0:03:09]} 15. b5 {[%emt 0:01:37]} f5 {[%emt 0:01:50]} 16. Nc2 {[%emt 0:02:06]} Kh8 {[%emt 0:05:18]} 17. Rac1 {[%emt 0:02:07]} Rf7 {[%emt 0:01:05]} 18. d5 {[%emt 0:01:09]} Nc5 {[%emt 0:02:43]} 19. Nd4 {[%emt 0:00:38]} Re8 {[%emt 0:03:52]} 20. Kh1 {[%emt 0:05:12]} Ref8 {[%emt 0:01:28]} 21. Nb3 {[%emt 0:17:14]} Nxb3 {[%emt 0:02:57]} 22. axb3 {[%emt 0:00:10]} Qh4 {[%emt 0:01:41]} 23. Bg3 {[%emt 0:04:24]} Qh6 {[%emt 0:01:03]} 24. f3 {[%emt 0:04:59]} exf3 {[%emt 0:01:30]} 25. Rxf3 {[%emt 0:00:58]} Bc8 {[%emt 0:02:30]} 26. c5 {[%emt 0:04:42]} dxc5 {[%emt 0:05:12]} 27. Bc4 {[%emt 0:01:44]} Bb7 {[%emt 0:02:46]} 28. Qf2 {[%emt 0:05:52]} g5 $15 {[%emt 0:08:00]} (28... Re7 $17 29. Bf4 g5) 29. Bh2 {[%emt 0:03:17]} f4 {[%emt 0:04:25]} 30. exf4 {[%emt 0:01:35]} gxf4 {[%emt 0:00:09]} 31. Re1 {[%emt 0:05:46]} Bd4 {[%emt 0:10:36]} 32. Qd2 {[%emt 0:02:16]} Qg5 {[%emt 0:02:33]} 33. Re4 {[%emt 0:03:29]} Be5 {[%emt 0:12:03]} 34. Rd3 {[%emt 0:14:52]} Bd6 {[%emt 0:00:49]} 35. Qe2 {[%emt 0:01:40]} Rg7 {[%emt 0:01:41]} 36. Re8 {[%emt 0:01:58]} Rxe8 {[%emt 0:00:51]} 37. Qxe8+ {[%emt 0:00:09]} Rg8 {[%emt 0:00:07]} 38. Qe2 {[%emt 0:00:20]} Bc8 {[%emt 0:00:28]} 39. Rd1 {[%emt 0:01:47]} Bd7 {[%emt 0:01:11]} 40. Bg1 {[%emt 0:00:49]} Re8 {[%emt 0:01:14]} 41. Qf1 {[%emt 0:01:02]} Qe5 {[%emt 0:01:27]} 42. Qf2 {[%emt 0:03:40]} Qc3 {[%emt 0:01:30]} 43. Rd3 {[%emt 0:00:57]} Qe1 {[%emt 0:00:19]} 44. Qf3 {[%emt 0:02:07]} Qe2 {[%emt 0:01:37]} 45. Qxe2 {[%emt 0:01:14]} Rxe2 {[%emt 0:00:03]} 46. Rd1 {[%emt 0:00:27]} Rc2 {[%emt 0:01:02]} 47. Rf1 {[%emt 0:00:40]} a4 {[%emt 0:00:21]} 48. Ra1 {[%emt 0:01:56]} axb3 {[%emt 0:00:20]} 49. Bxb3 {[%emt 0:00:23]} Rb2 {[%emt 0:00:21]} 50. Bc4 {[%emt 0:01:04]} Bxb5 {[%emt 0:00:49]} 0-1

[Event "Gibraltar Challengers B 2019"]
[Site "Caleta"]
[Date "2019.01.26"]
[Round "1"]
[White "Probst, Alexander"]
[Black "Gonzalez Gonzalez, Alfonso"]
[Result "1-0"]
[ECO "D02"]
[WhiteElo "1976"]
[BlackElo "2160"]
[Annotator "NA"]
[PlyCount "58"]
[EventDate "2019.01.18"]
[EventType "swiss"]
[EventCountry "GGB"]
[SourceTitle "playchess.com"]
[Source "ChessBase"]
[SourceQuality "1"]
[TimeControl "6600+10"]

1. Nf3 {[%emt 0:00:00]} Nc6 {[%emt 0:00:23]} 2. d4 {[%emt 0:00:25]} d5 {[%emt 0:00:30]} 3. g3 {[%emt 0:01:51]} Bf5 {[%emt 0:01:36]} 4. Bg2 {[%emt 0:00:57]} Qd7 {[%emt 0:00:11]} 5. Ne5 {[%emt 0:03:15] D02: 1 d4 d5 2 Nf3 sidelines, including 2...Nf6 3 g3 and 2...Nf6 3 Bf4} (5. O-O e6 6. c4 Rd8 7. Nc3 Nf6 8. Bg5 Be7 9. cxd5 Nxd5 10. Bxe7 Qxe7 11. Qb3 Qb4 12. Qxb4 Ndxb4 {1-0 (127) Radjabov,T (2710)-Deac,B (2543) Bastia 2016}) 5... Nxe5 {[%emt 0:00:06]} 6. dxe5 {[%emt 0:00:06]} O-O-O {[%emt 0:00:30]} 7. O-O {[%emt 0:03:48]} f6 $146 {[%emt 0:06:27]} ({Predecessor:} 7... h5 8. a4 e6 9. f4 h4 10. Be3 hxg3 11. hxg3 Bh3 12. Bxa7 Bxg2 13. Kxg2 {0-1 (32) Mueller,M (2208)-Steensen,K playchess.com INT 2004}) 8. Qd4 {[%emt 0:02:05]} b6 {[%emt 0:00:18]} 9. c4 {[%emt 0:00:50]} e6 {[%emt 0:01:06]} 10. cxd5 {[%emt 0:04:15]} Bc5 {[%emt 0:00:50]} 11. Qc4 {[%emt 0:00:57]} exd5 {[%emt 0:00:15]} 12. Qa6+ {[%emt 0:00:13]} Kb8 {[%emt 0:00:05]} 13. Nc3 {[%emt 0:00:48]} c6 {[%emt 0:01:41]} 14. Bf4 {[%emt 0:03:27]} g5 {[%emt 0:01:11]} 15. e6+ {[%emt 0:00:28]} gxf4 {[%emt 0:00:10]} 16. exd7 {[%emt 0:00:10]} Rxd7 {[%emt 0:00:10]} 17. Qa4 {[%emt 0:01:24]} Ne7 {[%emt 0:00:23]} 18. Qxf4+ {[%emt 0:00:17]} Bd6 {[%emt 0:00:03]} 19. Qa4 {[%emt 0:01:11]} h5 {[%emt 0:00:24]} 20. e4 {[%emt 0:00:44]} b5 {[%emt 0:01:55]} 21. Qb3 {[%emt 0:03:24]} h4 $18 {[%emt 0:00:26]} 22. exf5 {[%emt 0:00:32]} hxg3 {[%emt 0:00:06]} 23. hxg3 {[%emt 0:00:35]} Nxf5 {[%emt 0:00:32]} 24. Nxb5 {[%emt 0:01:59]} cxb5 {[%emt 0:01:04]} 25. Qxb5+ {[%emt 0:00:09]} Kc7 {[%emt 0:00:01]} 26. Qxd5 {[%emt 0:00:27]} Rh5 {[%emt 0:01:15]} 27. Rac1+ {[%emt 0:00:27]} Kd8 {[%emt 0:00:10]} 28. Qg8+ {[%emt 0:00:20]} Ke7 {[%emt 0:00:07]} 29. Rfe1+ {[%emt 0:00:34]} Be5 {[%emt 0:00:04]} 1-0

[Event "Gibraltar Challengers B 2019"]
[Site "Caleta"]
[Date "2019.01.26"]
[Round "1"]
[White "Garcia Lopez, Juan Antonio"]
[Black "Bengherabi, Khalil"]
[Result "0-1"]
[ECO "A09"]
[WhiteElo "1964"]
[BlackElo "2150"]
[Annotator "NA"]
[PlyCount "46"]
[EventDate "2019.01.18"]
[EventType "swiss"]
[EventCountry "GGB"]
[SourceTitle "playchess.com"]
[Source "ChessBase"]
[SourceQuality "1"]
[TimeControl "6600+10"]

1. Nf3 {[%emt 0:05:42]} d5 {[%emt 0:00:00]} 2. c4 {[%emt 0:00:00]} d4 {[%emt 0:00:06]} 3. d3 {[%emt 0:00:00]} c5 {[%emt 0:00:15]} 4. b4 {[%emt 0:00:00] A09: Réti Opening: 1 Nf3 d5 2 c4} cxb4 {[%emt 0:01:23]} 5. a3 {[%emt 0:00:00]} bxa3 {[%emt 0:00:07]} 6. Bxa3 {[%emt 0:00:00]} Nc6 {[%emt 0:00:13]} 7. g3 {[%emt 0:00:00]} g6 {[%emt 0:00:07] LiveBook: 10 Games} 8. Bg2 {[%emt 0:00:00]} Bg7 {[%emt 0:00:04]} 9. O-O {[%emt 0:00:00]} Nf6 {[%emt 0:00:04]} 10. Nbd2 {[%emt 0:00:00]} O-O {[%emt 0:00:09]} 11. Qc2 {[%emt 0:00:00]} (11. Nb3 Re8 12. Nfd2 Qc7 13. Nc5 Nd7 14. Qa4 Nxc5 15. Bxc5 {½-½ (42) Gareyev,T (2584)-Gasanov,E (2502) Baku 2018}) 11... Re8 {[%emt 0:00:05]} 12. Rfb1 {[%emt 0:00:00]} Qc7 {[%emt 0:01:09]} 13. Ng5 $146 {[%emt 0:00:00]} ({Predecessor:} 13. Nb3) 13... h6 {[%emt 0:19:02]} 14. Nge4 {[%emt 0:00:00]} Nd7 {[%emt 0:08:00]} 15. Nb3 {[%emt 0:07:09]} Kh7 {[%emt 0:03:37]} 16. f4 {[%emt 0:01:35]} f5 {[%emt 0:02:12]} 17. Nec5 {[%emt 0:04:11]} Nf6 {[%emt 0:08:22]} 18. Bxc6 {[%emt 0:04:33]} bxc6 {[%emt 0:01:09]} 19. Nxd4 {[%emt 0:00:09]} e5 {[%emt 0:00:27]} 20. fxe5 {[%emt 0:06:46]} Qxe5 {[%emt 0:00:26]} 21. Nf3 {[%emt 0:06:57]} Qe3+ {[%emt 0:07:36]} 22. Kf1 {[%emt 0:00:02]} Ng4 {[%emt 0:00:15]} 23. Ke1 {[%emt 0:00:08]} Bc3+ {[%emt 0:00:52] Qd1 [%emt 00:00:17]} 0-1